fUSD/lending_fUSD_20250515
["ID","MTS","AMOUNT","RATE_DAILY","PERIOD"]
[361173441,1747321854010,-400.0,0.00015342,2]
[361173442,1747321854020,-168.28,0.00015342,2]
[361173443,1747321854030,-500.0,0.0001547,2]
[361173444,1747321854039,-5800.0,0.00015565,2]
[361173445,1747321854049,-400.0,0.00015569,2]
[361173446,1747321854059,-400.0,0.00015569,2]
[361173447,1747321854069,-400.0,0.00015569,2]
[361173448,1747321854079,-400.0,0.00015569,2]
[361173449,1747321854089,-400.0,0.00015569,2]
[361173450,1747321854100,-400.0,0.00015569,2]
[361173451,1747321854110,-456.27,0.00015569,2]
[361173452,1747321854120,-874.93,0.00015569,2]
[361173453,1747321854129,-545.85,0.00015569,2]
[361173454,1747321854139,-31021.93777323,0.00015569,2]
[361173455,1747321854153,-5670.90222677,0.00015569,2]
[361173456,1747321854163,-400.0,0.00015569,2]
[361173457,1747321854173,-841.12,0.00015569,2]
[361173458,1747321854183,-1093.39,0.00015569,2]
[361173459,1747321854193,-496.12,0.00015569,2]
[361173460,1747321854203,-400.0,0.00015569,2]
[361173461,1747321854213,-400.0,0.00015569,2]
[361173462,1747321854222,-400.0,0.00015569,2]
[361173463,1747321854232,-648.28,0.00015569,2]
[361173464,1747321854242,-597.66,0.00015569,2]
[361173465,1747321854252,-400.0,0.00015569,2]
[361173466,1747321854262,-400.0,0.00015569,2]
[361173467,1747321854272,-1056.03,0.00015569,2]
[361173468,1747321854282,-628.34,0.00015569,2]
[361173469,1747321854292,-206.33256634,0.00015569,2]
[361173470,1747321854310,-500.0,0.00013698,2]
[361173471,1747321854320,-247.75743366,0.00015569,2]
[361173472,1747321854330,-404.18,0.00015569,2]
[361173473,1747321854340,-862.7,0.00015569,2]
[361173474,1747321854354,-221.2578873,0.00015569,2]
[361173475,1747321854366,-178.7421127,0.00015569,2]
[361173476,1747321854376,-221.33272113,0.00015569,2]
[361173477,1747321854604,-630.2598,0.00013552,2]
[361173478,1747321854615,-400.0,0.00013651,2]
[361173479,1747321854625,-400.0,0.00013925,2]
[361173480,1747321854635,-500.0,0.00014198,2]
[361173481,1747321854645,-400.0,0.00014199,2]
[361173482,1747321854654,-151.0,0.00014223,2]
[361173483,1747321854664,-400.0,0.00014473,2]
[361173484,1747321854674,-400.0,0.00014747,2]
[361173485,1747321854683,-500.0,0.0001502,2]
[361173486,1747321854693,-303.74051026,0.00015021,2]
[361173487,1747321854703,-500.0,0.00015294,2]
[361173488,1747321854713,-178.66727887,0.00015569,2]
[361173489,1747321854722,-500.0,0.0001557,2]
[361173490,1747321854732,-486.38,0.0001557,2]
[361173491,1747321854741,-400.0,0.0001557,2]
[361173492,1747321854751,-496.32,0.0001557,2]
[361173493,1747321854762,-151.0,0.00015573,2]
[361173494,1747321854771,-500.0,0.00015573,2]
[361173495,1747321854781,-1140.61473922,0.00015574,2]
[361173496,1747321854813,-4659.38526078,0.00015574,2]
[361173497,1747321854823,-5800.0,0.00015582,2]
[361173498,1747321854833,-5800.0,0.00015591,2]
[361173499,1747321854842,-3852.01226733,0.00015599,2]
[361173500,1747321854859,-1947.98773267,0.00015599,2]
[361173501,1747321854869,-19.68810233,0.00015607,2]
[361173502,1747321854881,-5780.31189767,0.00015607,2]
[361173503,1747321854890,-5800.0,0.00015616,2]
[361173504,1747321854900,-1322.38,0.00015616,2]
[361173505,1747321854910,-179.3,0.00015616,2]
[361173506,1747321854920,-602.11,0.00015616,2]
[361173507,1747321854930,-400.0,0.00015616,2]
[361173508,1747321854939,-400.0,0.00015616,2]
[361173509,1747321854950,-400.0,0.00015616,2]
[361173510,1747321854959,-328.77,0.00015616,2]
[361173511,1747321854969,-180.41913629,0.00015616,2]
[361173512,1747321854979,-400.0,0.00015616,2]
[361173513,1747321854988,-964.43,0.00015616,2]
[361173514,1747321854999,-406.27,0.00015616,2]
[361173515,1747321855012,-446.0,0.00015616,2]
[361173516,1747321855022,-545.52,0.00015616,2]
[361173517,1747321855031,-480.17,0.00015616,2]
[361173518,1747321855042,-400.0,0.00015616,2]
[361173519,1747321855051,-400.0,0.00015616,2]
[361173520,1747321855062,-815.78,0.00015616,2]
[361173521,1747321855072,-2399.78,0.00015616,2]
[361173522,1747321855082,-1436.67,0.00015616,2]
[361173523,1747321855096,-669.48,0.00015616,2]
[361173524,1747321855106,-400.0,0.00015616,2]
[361173525,1747321855116,-400.0,0.00015616,2]
[361173526,1747321855126,-2229.08,0.00015616,2]
[361173527,1747321855136,-164.19,0.00015616,2]
[361173528,1747321855146,-400.0,0.00015616,2]
[361173529,1747321855157,-1079.05,0.00015616,2]
[361173530,1747321855166,-400.0,0.00015616,2]
[361173531,1747321855176,-400.0,0.00015616,2]
[361173532,1747321855187,-1000.0,0.00015621,2]
[361173533,1747321855197,-1000.0,0.00015621,2]
[361173534,1747321855207,-1000.0,0.00015621,2]
[361173535,1747321855217,-1000.0,0.00015621,2]
[361173536,1747321855227,-181.0,0.00015719,2]
[361173537,1747321855237,-300.0,0.00015793,2]
[361173538,1747321855247,-400.0,0.00015843,2]
[361173539,1747321855257,-400.0,0.00015843,2]
[361173540,1747321855267,-400.0,0.00015843,2]
[361173541,1747321855276,-400.0,0.00015843,2]
[361173542,1747321855297,-400.0,0.00015843,2]
[361173543,1747321855307,-400.0,0.00015843,2]
[361173544,1747321855317,-456.27,0.00015843,2]
[361173545,1747321855327,-874.93,0.00015843,2]
[361173546,1747321855337,-545.85,0.00015843,2]
[361173547,1747321855350,-36692.84,0.00015843,2]
[361173548,1747321855360,-400.0,0.00015843,2]
[361173549,1747321855370,-841.12,0.00015843,2]
[361173550,1747321855380,-1093.39,0.00015843,2]
[361173551,1747321855391,-496.12,0.00015843,2]
[361173552,1747321855400,-400.0,0.00015843,2]
[361173553,1747321855410,-400.0,0.00015843,2]
[361173554,1747321855421,-400.0,0.00015843,2]
[361173555,1747321855430,-1000.0,0.00015843,2]
[361173556,1747321855440,-1000.0,0.00015843,2]
[361173557,1747321855451,-1000.0,0.00015843,2]
[361173558,1747321855461,-1000.0,0.00015843,2]
[361173559,1747321855471,-1000.0,0.00015843,2]
[361173560,1747321855481,-1000.0,0.00015843,2]
[361173561,1747321855492,-1000.0,0.00015843,2]
[361173562,1747321855502,-1000.0,0.00015843,2]
[361173563,1747321855512,-1000.0,0.00015843,2]
[361173564,1747321855522,-1000.0,0.00015843,2]
[361173565,1747321855532,-1000.0,0.00015843,2]
[361173566,1747321855542,-1000.0,0.00015843,2]
[361173567,1747321855553,-1000.0,0.00015843,2]
[361173568,1747321855563,-1000.0,0.00015843,2]
[361173569,1747321855573,-1000.0,0.00015843,2]
[361173570,1747321855583,-1000.0,0.00015843,2]
[361173571,1747321855595,-849.78057815,0.00015843,2]
[361173572,1747321855605,-648.28,0.00015843,2]
[361173573,1747321855615,-597.66,0.00015843,2]
[361173574,1747321855625,-400.0,0.00015843,2]
[361173575,1747321855635,-400.0,0.00015843,2]
[361173576,1747321855645,-1056.03,0.00015843,2]
[361173577,1747321855655,-628.34,0.00015843,2]
[361173578,1747321855665,-692.87,0.00015843,2]
[361173579,1747321855675,-454.09,0.00015843,2]
[361173580,1747321855685,-404.18,0.00015843,2]
[361173581,1747321855696,-862.7,0.00015843,2]
[361173582,1747321855707,-400.0,0.00015843,2]
[361173583,1747321855717,-400.0,0.00015843,2]
[361173584,1747321855728,-500.0,0.00015843,2]
[361173585,1747321855738,-400.0,0.00015844,2]
[361173586,1747321855749,-151.0,0.00015844,2]
[361173587,1747321855759,-151.0,0.00015844,2]
[361173588,1747321855769,-496.32,0.00015844,2]
[361173589,1747321855779,-1322.38,0.0001589,2]
[361173590,1747321855790,-602.11,0.0001589,2]
[361173591,1747321855800,-400.0,0.0001589,2]
[361173592,1747321855811,-400.0,0.0001589,2]
[361173593,1747321855823,-400.0,0.0001589,2]
[361173594,1747321855834,-400.0,0.0001589,2]
[361173595,1747321855845,-964.43,0.0001589,2]
[361173596,1747321855856,-406.27,0.0001589,2]
[361173597,1747321855866,-446.0,0.0001589,2]
[361173598,1747321855876,-545.52,0.0001589,2]
[361173599,1747321855887,-480.17,0.0001589,2]
[361173600,1747321855897,-400.0,0.0001589,2]
[361173601,1747321855907,-400.0,0.0001589,2]
[361173602,1747321855917,-815.78,0.0001589,2]
[361173603,1747321855927,-2399.78,0.0001589,2]
[361173604,1747321855937,-1436.67,0.0001589,2]
[361173605,1747321855947,-669.48,0.0001589,2]
[361173606,1747321855958,-400.0,0.0001589,2]
[361173607,1747321855969,-400.0,0.0001589,2]
[361173608,1747321855979,-2229.08,0.0001589,2]
[361173609,1747321855989,-400.0,0.0001589,2]
[361173610,1747321855999,-1079.05,0.0001589,2]
[361173611,1747321856013,-400.0,0.0001589,2]
[361173612,1747321856023,-400.0,0.0001589,2]
[361173613,1747321856033,-150.0,0.0001589,2]
[361173614,1747321856043,-175.03,0.00015942,2]
[361173615,1747321856054,-1000.0,0.00015958,2]
[361173616,1747321856065,-300.0,0.00016,3]
[361173617,1747321856075,-1000.0,0.00016,2]
[361173618,1747321856086,-1000.0,0.00016,2]
[361173619,1747321856099,-200.0,0.00016,2]
[361173620,1747321856108,-9999.99,0.00016116,2]
[361173621,1747321856118,-151.0,0.00016117,2]
[361173622,1747321856128,-151.0,0.00016117,2]
[361173623,1747321856139,-151.0,0.00016117,2]
[361173624,1747321856150,-400.0,0.00016117,2]
[361173625,1747321856330,-400.0,0.00016117,2]
[361173626,1747321856340,-400.0,0.00016117,2]
[361173627,1747321856355,-400.0,0.00016117,2]
[361173628,1747321856365,-400.0,0.00016117,2]
[361173629,1747321856375,-400.0,0.00016117,2]
[361173630,1747321856385,-456.27,0.00016117,2]
[361173631,1747321856394,-874.93,0.00016117,2]
[361173632,1747321856404,-545.85,0.00016117,2]
[361173633,1747321856414,-36692.84,0.00016117,2]
[361173634,1747321856423,-226.78268374,0.00016117,2]
[361173635,1747321856433,-841.12,0.00016117,2]
[361173636,1747321856442,-1093.39,0.00016117,2]
[361173637,1747321856452,-496.12,0.00016117,2]
[361173638,1747321856461,-400.0,0.00016117,2]
[361173639,1747321856471,-400.0,0.00016117,2]
[361173640,1747321856480,-400.0,0.00016117,2]
[361173641,1747321856490,-648.28,0.00016117,2]
[361173642,1747321856500,-597.66,0.00016117,2]
[361173643,1747321856509,-400.0,0.00016117,2]
[361173644,1747321856519,-400.0,0.00016117,2]
[361173645,1747321856528,-1056.03,0.00016117,2]
[361173646,1747321856538,-628.34,0.00016117,2]
[361173647,1747321856548,-454.09,0.00016117,2]
[361173648,1747321856558,-404.18,0.00016117,2]
[361173649,1747321856569,-862.7,0.00016117,2]
[361173650,1747321856579,-400.0,0.00016117,2]
[361173651,1747321856589,-400.0,0.00016117,2]
[361173652,1747321856600,-400.0,0.00016118,2]
[361173653,1747321856610,-496.32,0.00016118,2]
[361173654,1747321856619,-223.0315306,0.00016132,2]
[361173655,1747321856629,-1322.38,0.00016164,2]
[361173656,1747321856638,-602.11,0.00016164,2]
[361173657,1747321856647,-400.0,0.00016164,2]
[361173658,1747321856656,-400.0,0.00016164,2]
[361173659,1747321856667,-400.0,0.00016164,2]
[361173660,1747321856677,-400.0,0.00016164,2]
[361173661,1747321856687,-964.43,0.00016164,2]
[361173662,1747321856696,-406.27,0.00016164,2]
[361173663,1747321856706,-446.0,0.00016164,2]
[361173664,1747321856715,-545.52,0.00016164,2]
[361173665,1747321856725,-480.17,0.00016164,2]
[361173666,1747321856734,-400.0,0.00016164,2]
[361173667,1747321856744,-400.0,0.00016164,2]
[361173668,1747321856753,-815.78,0.00016164,2]
[361173669,1747321856764,-2399.78,0.00016164,2]
[361173670,1747321856773,-1436.67,0.00016164,2]
[361173671,1747321856784,-669.48,0.00016164,2]
[361173672,1747321856793,-400.0,0.00016164,2]
[361173673,1747321856803,-400.0,0.00016164,2]
[361173674,1747321856812,-2229.08,0.00016164,2]
[361173675,1747321856822,-400.0,0.00016164,2]
[361173676,1747321856832,-1079.05,0.00016164,2]
[361173677,1747321856841,-400.0,0.00016164,2]
[361173678,1747321856856,-400.0,0.00016164,2]
[361173679,1747321856866,-1500.0,0.00016168,2]
[361173680,1747321856875,-1500.0,0.00016168,2]
[361173681,1747321856884,-483.39811155,0.00016168,2]
[361173682,1747321856895,-1500.0,0.00016168,2]
[361173683,1747321856904,-232.25,0.00016226,2]
[361173684,1747321856914,-200.0,0.0001634,2]
[361173685,1747321856924,-500.0,0.0001639,2]
[361173686,1747321856933,-400.0,0.00016391,2]
[361173687,1747321856943,-400.0,0.00016391,2]
[361173688,1747321856952,-400.0,0.00016391,2]
[361173689,1747321856962,-400.0,0.00016391,2]
[361173690,1747321856971,-400.0,0.00016391,2]
[361173691,1747321856981,-246.36330157,0.00016391,2]
[361173692,1747321856991,-456.27,0.00016391,2]
[361173693,1747321857001,-874.93,0.00016391,2]
[361173694,1747321857012,-545.85,0.00016391,2]
[361173695,1747321857022,-36692.84,0.00016391,2]
[361173696,1747321857031,-841.12,0.00016391,2]
[361173697,1747321857040,-1093.39,0.00016391,2]
[361173698,1747321857050,-496.12,0.00016391,2]
[361173699,1747321857059,-185.07530194,0.00016391,2]
[361173700,1747321857069,-400.0,0.00016391,2]
[361173701,1747321857078,-400.0,0.00016391,2]
[361173702,1747321857088,-648.28,0.00016391,2]
[361173703,1747321857100,-597.66,0.00016391,2]
[361173704,1747321857110,-400.0,0.00016391,2]
[361173705,1747321857120,-400.0,0.00016391,2]
[361173706,1747321857130,-1056.03,0.00016391,2]
[361173707,1747321857141,-628.34,0.00016391,2]
[361173708,1747321857151,-454.09,0.00016391,2]
[361173709,1747321857161,-404.18,0.00016391,2]
[361173710,1747321857171,-862.7,0.00016391,2]
[361173711,1747321857180,-400.0,0.00016391,2]
[361173712,1747321857190,-400.0,0.00016391,2]
[361173713,1747321857199,-151.494778,0.00016392,2]
[361173714,1747321857209,-151.0,0.00016392,2]
[361173715,1747321857218,-151.0,0.00016392,2]
[361173716,1747321857228,-151.0,0.00016392,2]
[361173717,1747321857237,-151.0,0.00016392,2]
[361173718,1747321857246,-400.0,0.00016392,2]
[361173719,1747321857255,-151.0,0.00016392,2]
[361173720,1747321857265,-496.32,0.00016392,2]
[361173721,1747321857274,-151.0,0.00016392,2]
[361173722,1747321857284,-592.08,0.00016438,2]
[361173723,1747321857293,-592.08,0.00016438,2]
[361173724,1747321857303,-592.08,0.00016438,2]
[361173725,1747321857313,-592.08,0.00016438,2]
[361173726,1747321857323,-592.08,0.00016438,2]
[361173727,1747321857332,-592.08,0.00016438,2]
[361173728,1747321857342,-592.08,0.00016438,2]
[361173729,1747321857353,-592.08,0.00016438,2]
[361173730,1747321857362,-592.08,0.00016438,2]
[361173731,1747321857372,-592.08,0.00016438,2]
[361173732,1747321857381,-592.08,0.00016438,2]
[361173733,1747321857390,-500.0,0.00016438,2]
[361173734,1747321857399,-500.0,0.00016438,2]
[361173735,1747321857410,-500.0,0.00016438,2]
[361173736,1747321857421,-500.0,0.00016438,2]
[361173737,1747321857431,-500.0,0.00016438,2]
[361173738,1747321857440,-500.0,0.00016438,2]
[361173739,1747321857450,-500.0,0.00016438,2]
[361173740,1747321857459,-500.0,0.00016438,2]
[361173741,1747321857469,-500.0,0.00016438,2]
[361173742,1747321857478,-500.0,0.00016438,2]
[361173743,1747321857487,-500.0,0.00016438,2]
[361173744,1747321857497,-1322.38,0.00016438,2]
[361173745,1747321857507,-602.11,0.00016438,2]
[361173746,1747321857516,-400.0,0.00016438,2]
[361173747,1747321857526,-400.0,0.00016438,2]
[361173748,1747321857535,-400.0,0.00016438,2]
[361173749,1747321857544,-151.0,0.00016438,2]
[361173750,1747321857554,-574.22,0.00016438,2]
[361173751,1747321857563,-574.22,0.00016438,2]
[361173752,1747321857572,-574.22,0.00016438,2]
[361173753,1747321857582,-574.22,0.00016438,2]
[361173754,1747321857591,-574.22,0.00016438,2]
[361173755,1747321857602,-574.22,0.00016438,2]
[361173756,1747321857612,-574.22,0.00016438,2]
[361173757,1747321857621,-574.22,0.00016438,2]
[361173758,1747321857631,-574.22,0.00016438,2]
[361173759,1747321857641,-574.22,0.00016438,2]
[361173760,1747321857650,-574.22,0.00016438,2]
[361173761,1747321857660,-400.0,0.00016438,2]
[361173762,1747321857671,-964.43,0.00016438,2]
[361173763,1747321857685,-406.27,0.00016438,2]
[361173764,1747321857696,-446.0,0.00016438,2]
[361173765,1747321857705,-545.52,0.00016438,2]
[361173766,1747321857715,-480.17,0.00016438,2]
[361173767,1747321857725,-400.0,0.00016438,2]
[361173768,1747321857734,-400.0,0.00016438,2]
[361173769,1747321857744,-815.78,0.00016438,2]
[361173770,1747321857753,-2399.78,0.00016438,2]
[361173771,1747321857763,-1436.67,0.00016438,2]
[361173772,1747321857773,-669.48,0.00016438,2]
[361173773,1747321857784,-400.0,0.00016438,2]
[361173774,1747321857793,-400.0,0.00016438,2]
[361173775,1747321857804,-2229.08,0.00016438,2]
[361173776,1747321857813,-197.46894775,0.00016438,2]
[361173777,1747321857824,-1079.05,0.00016438,2]
[361173778,1747321857834,-400.0,0.00016438,2]
[361173779,1747321857844,-400.0,0.00016438,2]
[361173780,1747321857854,-204.41,0.00016438,2]
[361173781,1747321857864,-300.0,0.00016438,2]
[361173782,1747321857873,-1075.0,0.00016587,2]
[361173783,1747321857884,-151.0,0.00016665,2]
[361173784,1747321857893,-400.0,0.00016665,2]
[361173785,1747321857903,-400.0,0.00016665,2]
[361173786,1747321857912,-400.0,0.00016665,2]
[361173787,1747321857921,-400.0,0.00016665,2]
[361173788,1747321857931,-400.0,0.00016665,2]
[361173789,1747321857940,-456.27,0.00016665,2]
[361173790,1747321857950,-874.93,0.00016665,2]
[361173791,1747321857960,-545.85,0.00016665,2]
[361173792,1747321857970,-36692.84,0.00016665,2]
[361173793,1747321857979,-841.12,0.00016665,2]
[361173794,1747321857989,-1093.39,0.00016665,2]
[361173795,1747321857999,-496.12,0.00016665,2]
[361173796,1747321858010,-400.0,0.00016665,2]
[361173797,1747321858021,-298.75626375,0.00016665,2]
[361173798,1747321858030,-648.28,0.00016665,2]
[361173799,1747321858040,-597.66,0.00016665,2]
[361173800,1747321858050,-439.35670377,0.00016665,2]
[361173801,1747321858060,-400.0,0.00016665,2]
[361173802,1747321858069,-1056.03,0.00016665,2]
[361173803,1747321858081,-628.34,0.00016665,2]
[361173804,1747321858091,-454.09,0.00016665,2]
[361173805,1747321858101,-404.18,0.00016665,2]
[361173806,1747321858111,-862.7,0.00016665,2]
[361173807,1747321858121,-245.45001416,0.00016665,2]
[361173808,1747321858130,-400.0,0.00016665,2]
[361173809,1747321858140,-592.08,0.00016666,2]
[361173810,1747321858149,-500.0,0.00016666,2]
[361173811,1747321858158,-400.0,0.00016666,2]
[361173812,1747321858168,-496.32,0.00016666,2]
[361173813,1747321858177,-1322.38,0.00016712,2]
[361173814,1747321858187,-602.11,0.00016712,2]
[361173815,1747321858196,-400.0,0.00016712,2]
[361173816,1747321858206,-371.18134382,0.00016712,2]
[361173817,1747321858217,-400.0,0.00016712,2]
[361173818,1747321858226,-574.22,0.00016712,2]
[361173819,1747321858236,-400.0,0.00016712,2]
[361173820,1747321858247,-964.43,0.00016712,2]
[361173821,1747321858258,-406.27,0.00016712,2]
[361173822,1747321858268,-446.0,0.00016712,2]
[361173823,1747321858278,-545.52,0.00016712,2]
[361173824,1747321858287,-480.17,0.00016712,2]
[361173825,1747321858296,-400.0,0.00016712,2]
[361173826,1747321858306,-400.0,0.00016712,2]
[361173827,1747321858316,-815.78,0.00016712,2]
[361173828,1747321858326,-2399.78,0.00016712,2]
[361173829,1747321858335,-1436.67,0.00016712,2]
[361173830,1747321858347,-669.48,0.00016712,2]
[361173831,1747321858357,-400.0,0.00016712,2]
[361173832,1747321858367,-400.0,0.00016712,2]
[361173833,1747321858377,-2229.08,0.00016712,2]
[361173834,1747321858387,-1079.05,0.00016712,2]
[361173835,1747321858397,-400.0,0.00016712,2]
[361173836,1747321858407,-400.0,0.00016712,2]
[361173837,1747321858416,-223.45,0.00016712,2]
[361173838,1747321858427,-2000.0,0.00016716,2]
[361173839,1747321858438,-2000.0,0.00016716,2]
[361173840,1747321858450,-2000.0,0.00016716,2]
[361173841,1747321858461,-263.19,0.00016759,2]
[361173842,1747321858471,-500.0,0.00016799,2]
[361173843,1747321858481,-151.0,0.000168,2]
[361173844,1747321858491,-151.0,0.000169,2]
[361173845,1747321858500,-151.0,0.00016939,2]
[361173846,1747321858510,-400.0,0.00016939,2]
[361173847,1747321858519,-400.0,0.00016939,2]
[361173848,1747321858529,-400.0,0.00016939,2]
[361173849,1747321858538,-400.0,0.00016939,2]
[361173850,1747321858547,-400.0,0.00016939,2]
[361173851,1747321858558,-456.27,0.00016939,2]
[361173852,1747321858567,-874.93,0.00016939,2]
[361173853,1747321858578,-545.85,0.00016939,2]
[361173854,1747321858587,-36692.84,0.00016939,2]
[361173855,1747321858599,-841.12,0.00016939,2]
[361173856,1747321858609,-1093.39,0.00016939,2]
[361173857,1747321858619,-496.12,0.00016939,2]
[361173858,1747321858628,-400.0,0.00016939,2]
[361173859,1747321858638,-648.28,0.00016939,2]
[361173860,1747321858648,-597.66,0.00016939,2]
[361173861,1747321858658,-400.0,0.00016939,2]
[361173862,1747321858720,-1056.03,0.00016939,2]
[361173863,1747321858730,-628.34,0.00016939,2]
[361173864,1747321858740,-454.09,0.00016939,2]
[361173865,1747321858750,-404.18,0.00016939,2]
[361173866,1747321858759,-862.7,0.00016939,2]
[361173867,1747321858768,-400.0,0.00016939,2]
[361173868,1747321858778,-592.08,0.0001694,2]
[361173869,1747321858788,-500.0,0.0001694,2]
[361173870,1747321858797,-400.0,0.0001694,2]
[361173871,1747321858807,-496.32,0.0001694,2]
[361173872,1747321858817,-1322.38,0.00016986,2]
[361173873,1747321858827,-602.11,0.00016986,2]
[361173874,1747321858837,-400.0,0.00016986,2]
[361173875,1747321858847,-400.0,0.00016986,2]
[361173876,1747321858857,-151.0,0.00016986,2]
[361173877,1747321858867,-197.592944,0.00016986,2]
[361173878,1747321858876,-574.22,0.00016986,2]
[361173879,1747321858886,-400.0,0.00016986,2]
[361173880,1747321858895,-964.43,0.00016986,2]
[361173881,1747321858905,-406.27,0.00016986,2]
[361173882,1747321858915,-446.0,0.00016986,2]
[361173883,1747321858925,-545.52,0.00016986,2]
[361173884,1747321858934,-480.17,0.00016986,2]
[361173885,1747321858943,-400.0,0.00016986,2]
[361173886,1747321858953,-400.0,0.00016986,2]
[361173887,1747321858962,-815.78,0.00016986,2]
[361173888,1747321858972,-2399.78,0.00016986,2]
[361173889,1747321858982,-1436.67,0.00016986,2]
[361173890,1747321858992,-669.48,0.00016986,2]
[361173891,1747321859003,-400.0,0.00016986,2]
[361173892,1747321859016,-400.0,0.00016986,2]
[361173893,1747321859026,-2229.08,0.00016986,2]
[361173894,1747321859036,-1079.05,0.00016986,2]
[361173895,1747321859047,-400.0,0.00016986,2]
[361173896,1747321859057,-400.0,0.00016986,2]
[361173897,1747321859066,-1000.000001,0.00017,2]
[361173898,1747321859076,-180.0,0.0001704,2]
[361173899,1747321859085,-154.788367,0.00017054,2]
[361173900,1747321859095,-151.0,0.000171,2]
[361173901,1747321859105,-151.0,0.000171,2]
[361173902,1747321859115,-151.0,0.000171,2]
[361173903,1747321859125,-151.0,0.000171,2]
[361173904,1747321859135,-500.0,0.00017105,2]
[361173905,1747321859145,-182437.06804323,0.00017106,2]
[361173906,1747321859809,-400.0,0.00013651,2]
[361173907,1747321859820,-400.0,0.00013651,2]
[361173908,1747321859830,-6874.43615151,0.000149,2]
[361173909,1747321859841,-16600.21262914,0.00017106,2]
[361173910,1747321859853,-151.0,0.00017106,2]
[361173911,1747321859863,-156.118192,0.00017106,2]
[361173912,1747321859874,-151.0,0.00017106,2]
[361173913,1747321859885,-151.0,0.00017106,2]
[361173914,1747321859895,-151.0,0.00017106,2]
[361173915,1747321859906,-151.0,0.00017106,2]
[361173916,1747321859917,-531.62409445,0.00017173,2]
[361173917,1747321859928,-400.0,0.00017213,2]
[361173918,1747321859940,-403.10073131,0.00017213,2]
[361173919,1747321859952,-400.0,0.00017213,2]
[361173920,1747321859963,-400.0,0.00017213,2]
[361173921,1747321859974,-400.0,0.00017213,2]
[361173922,1747321859985,-220.71770104,0.00017213,2]
[361173923,1747321860074,-235.55229896,0.00017213,2]
[361173924,1747321860085,-874.93,0.00017213,2]
[361173925,1747321860095,-545.85,0.00017213,2]
[361173926,1747321860107,-36692.84,0.00017213,2]
[361173927,1747321860118,-841.12,0.00017213,2]
[361173928,1747321860128,-1093.39,0.00017213,2]
[361173929,1747321860139,-496.12,0.00017213,2]
[361173930,1747321860149,-400.0,0.00017213,2]
[361173931,1747321860160,-648.28,0.00017213,2]
[361173932,1747321860171,-597.66,0.00017213,2]
[361173933,1747321860181,-400.0,0.00017213,2]
[361173934,1747321860192,-1056.03,0.00017213,2]
[361173935,1747321860203,-692.87,0.00017213,2]
[361173936,1747321860214,-628.34,0.00017213,2]
[361173937,1747321860224,-454.09,0.00017213,2]
[361173938,1747321860234,-404.18,0.00017213,2]
[361173939,1747321860245,-862.7,0.00017213,2]
[361173940,1747321860255,-400.0,0.00017213,2]